Cogmind - Beta 13 --- EXPLORER MODE // 2024.04.25 @ 11:08:28 // Winter2019/RPGLIKE Player: H3-RMN Result: Self-destructed Performance ------------- Evolutions (1) 500 Regions Visited (5) 1000 Robots Destroyed (60) 300 Value Destroyed (1325) 1325 Prototype IDs (50) 1000 Alien Tech Used (0) 0 Bonus (50) 50 TOTAL SCORE: 4175 Bonus ------- Follower Combat Kills 50 Cogmind --------- Core Integrity 600/600 Matter 300/300 Energy 460/460 System Corruption 0% Temperature Cool (0) Movement Walking (120) Location -9/Exiles Parts ------- > --- POWER (2) -------- Cooled Ion Engine Cooled Ion Engine > --- PROPULSION (3) --- Aluminum Leg Aluminum Leg Aluminum Leg > --- UTILITY (7) ------ Experimental Sensor Array Improved Terrain Scanner Transport Network Coupler Targeting Computer Medium Armor Plating Hardened Light Armor Plating Authchip [Propulsion] > --- WEAPON (3) ------- Datajack Mining Claw Mining Claw > --- INVENTORY (3) ---- Protomatter-53 Authchip [Propulsion] Rocket Launcher Peak State ------------ > --- POWER ------------ Cooled Ion Engine Cooled Ion Engine > --- PROPULSION ------- Aluminum Leg Aluminum Leg Aluminum Leg > --- UTILITY ---------- Experimental Sensor Array Improved Terrain Scanner Transport Network Coupler Targeting Computer Medium Armor Plating Hardened Light Armor Plating Authchip [Propulsion] > --- WEAPON ----------- Datajack Mining Claw Mining Claw > --- INVENTORY -------- Protomatter Authchip [Propulsion] [Rating: 34] Favorites ----------- Power Light Ion Engine Engine Light Ion Engine Propulsion Aluminum Leg Leg Aluminum Leg Utility Light Armor Plating Device Improved Terrain Scanner Processor Targeting Computer Hackware Authchip [Propulsion] Protection Light Armor Plating Weapon Mining Claw Energy Gun Medium Laser Ballistic Gun Assault Rifle Slashing Weapon Mining Claw Special Melee Weapon Datajack Build | -11 -10 -10 -9 -9 -9 ------- Run | Yrd Mat Min Mat Min Exi Slots Evolved 11 | 6 2 1 1 1 . Power 1 | . 1 . . . . Propulsion 2 | 1 1 . . . . Utility 6 | 4 . 1 1 . . Weapon 2 | 1 . . . 1 . Parts Attached 27 | 10 8 1 7 1 . Power 4 | 1 1 . 2 . . Engine 4 | 1 1 . 2 . . Core . | . . . . . . Reactor . | . . . . . . Propulsion 4 | 2 1 . 1 . . Treads . | . . . . . . Leg 4 | 2 1 . 1 . . Wheel . | . . . . . . Hover . | . . . . . . Flight . | . . . . . . Utility 13 | 5 3 1 4 . . Device 3 | 1 1 1 . . . Storage . | . . . . . . Processor 3 | 2 1 . . . . Hackware 1 | . . . 1 . . Protection 6 | 2 1 . 3 . . Artifact . | . . . . . . Weapon 6 | 2 3 . . 1 . Energy Gun 2 | 2 . . . . . Energy Cannon . | . . . . . . Ballistic Gun 1 | . 1 . . . . Ballistic Cannon . | . . . . . . Launcher . | . . . . . . Special Weapon . | . . . . . . Impact Weapon . | . . . . . . Slashing Weapon 2 | . 2 . . . . Piercing Weapon . | . . . . . . Special Melee Weapon 1 | . . . . 1 . Unidentified Prototypes 1 | . . 1 . . . Parts Lost . | . . . . . . Power . | . . . . . . Propulsion . | . . . . . . Utility . | . . . . . . Weapon . | . . . . . . Highest Loss Streak . | . . . . . . To Critical Strikes . | . . . . . . Average Slot Usage (%) 99 | . 99 97 99 100 100 Engine 13 | . 11 15 14 13 13 Leg 21 | . 21 23 22 20 20 Device 13 | . 15 12 14 13 13 Processor 14 | . 16 15 14 13 13 Hackware 2 | . . . 2 6 6 Protection 14 | . 15 15 14 13 13 Energy Gun 3 | . 13 . . . . Slashing Weapon 11 | . 3 15 14 13 13 Special Melee Weapon 1 | . . . . 4 6 Naked Turns . | . . . . . . Heaviest Build 36 | 11 18 18 36 35 35 Greatest Support 35 | 25 35 35 35 35 35 Greatest Overweight (x) 1 | . . . 1 . . Average Overweight (x) . | . . . . . . Largest Inventory Capacity 3 | 2 2 2 3 3 3 Average Capacity 2 | 1 2 2 2 3 3 Most Carried 3 | . 2 2 3 3 3 Average Carried 1 | . 1 1 2 2 3 Final Capacity 3 | 2 2 2 3 3 3 Final Carried 3 | . 2 1 3 3 3 Class Distribution -------------------- 75% | Hacker-Gladiator 24% | Hacker-Mutant Dominant Class ---------------- Hacker-Mutant | -10/Materials Hacker-Gladiator | -10/Mines Hacker-Gladiator | -9/Materials Hacker-Gladiator | -9/Mines Hacker-Gladiator | -9/Exiles Resources | -11 -10 -10 -9 -9 -9 ----------- Run | Yrd Mat Min Mat Min Exi Matter Collected 506 | 300 116 10 70 10 . Remotely . | . . . . . . Salvage Created 1828 | 89 700 343 608 88 . Parts 138 | 5 53 24 47 9 . Haulers Intercepted 3 | . 1 . 2 . . Recyclers Shooed 1 | . . 1 . . . Parts Field Recycled . | . . . . . . Retrieved Matter . | . . . . . . Parts Self-Destructed . | . . . . . . Prevented . | . . . . . . Kills | -11 -10 -10 -9 -9 -9 ------- Run | Yrd Mat Min Mat Min Exi Combat Hostiles Destroyed 37 | . 15 6 14 2 . Melee 24 | . 2 6 14 2 . Guns 13 | . 13 . . . . Classes Destroyed 9 | 2 5 1 1 . . Worker 5 | . 3 . . 2 . Builder 3 | . . 2 . 1 . Tunneler 4 | 2 1 1 . . . Hauler 3 | . 1 . 2 . . Recycler 4 | 1 1 1 1 . . Watcher 4 | . 3 . 1 . . Swarmer 8 | . 2 2 2 2 . Grunt 24 | . 13 4 7 . . Sentry 5 | . . . 5 . . Best Kill Streak 4 | 2 4 3 3 1 . Combat Bots Only 4 | . 4 2 3 1 . Max Kills in Single Turn 1 | 1 1 1 1 1 . Gunslinging . | . . . . . . Exploded . | . . . . . . Melee 1 | . 1 1 1 1 . Uniques/NPCs Destroyed . | . . . . . . Combat | -11 -10 -10 -9 -9 -9 -------- Run | Yrd Mat Min Mat Min Exi Hostile Shots Fired 180 | . 39 65 67 9 . Missed 43 | . 12 8 20 3 . Damage Taken 994 | . 194 422 353 25 . Core 635 | . 123 283 215 14 . Absorbed by Shields . | . . . . . . Redirected to Core 495 | . 94 201 186 14 . Ignored by Resistances 637 | . 127 268 222 20 . Core Remaining (%) 99 | 100 . 99 . . . Volleys Fired 47 | 6 41 . . . . Largest 2 | 2 2 . . . . Hottest 90 | 90 90 . . . . Shots Fired 93 | 12 81 . . . . Gun 93 | 12 81 . . . . Cannon . | . . . . . . Launcher . | . . . . . . Special . | . . . . . . Kinetic 12 | . 12 . . . . Thermal 81 | 12 69 . . . . Explosive . | . . . . . . Electromagnetic . | . . . . . . Robot Hit Streak 54 | 11 54 . . . . Robot Miss Streak 2 | . 2 . . . . Penetration Max . | . . . . . . Secondary Targets 2 | . 2 . . . . Max Gunslinging Chain 1 | . 1 . . . . Shots Hit Robots 198 | 11 84 39 47 13 4 Core Hits 77 | 4 40 11 18 4 . Critical Kills . | . . . . . . Critical Parts Destroyed . | . . . . . . Critical Strikes 3 | . 3 . . . . Burn 3 | . 3 . . . . Melee Attacks 132 | . 12 45 55 16 4 Impact . | . . . . . . Slashing 128 | . 12 45 55 16 . Piercing . | . . . . . . Sneak Attacks 26 | . 4 8 3 7 4 Combat Hostiles . | . . . . . . Follow-up Attacks 18 | . 2 7 7 2 . Damage Inflicted 4128 | 129 1271 1095 1149 484 . Guns 1052 | 129 923 . . . . Cannons . | . . . . . . Explosions . | . . . . . . Melee 3076 | . 348 1095 1149 484 . Ramming . | . . . . . . Kinetic 134 | . 134 . . . . Thermal 918 | 129 789 . . . . Explosive . | . . . . . . Electromagnetic . | . . . . . . Impact . | . . . . . . Slashing 3076 | . 348 1095 1149 484 . Piercing . | . . . . . . Highest Corruption . | . . . . . . Average Corruption . | . . . . . . Corruption Purged . | . . . . . . Corruption Blocked . | . . . . . . Overload Shots . | . . . . . . Overflow Damage 170 | . 27 75 13 55 . Projectiles . | . . . . . . Explosions . | . . . . . . Melee 170 | . 27 75 13 55 . Knockbacks . | . . . . . . Impact . | . . . . . . Kinetic . | . . . . . . Secondary . | . . . . . . Self-Inflicted Damage . | . . . . . . Shots . | . . . . . . Rammed . | . . . . . . Targets Rammed . | . . . . . . Kicked . | . . . . . . Crushed . | . . . . . . Highest Temperature 231 | 117 231 24 15 . . Average Temperature 56 | 58 78 9 6 . . Received Heat Transfer 729 | . 153 372 204 . . Siege Activations . | . . . . . . Robots Corrupted . | . . . . . . Combat Hostiles . | . . . . . . Parts Fried . | . . . . . . Impact Corruptions . | . . . . . . Robots Melted . | . . . . . . Combat Hostiles . | . . . . . . Parts Melted 5 | 1 4 . . . . Heat Transferred 2662 | 347 2315 . . . . Parts Sabotaged . | . . . . . . Parts Stolen . | . . . . . . Parts Stripped . | . . . . . . Power Chain Reactions . | . . . . . . Alert | -11 -10 -10 -9 -9 -9 ------- Run | Yrd Mat Min Mat Min Exi Peak Influence 325 | 15 325 268 252 157 . Initial 21 | . 7 8 5 21 . Average 95 | 9 157 71 103 70 . Maximum Alert Level 1 | . 1 1 1 . . Low Security (%) 83 | 100 64 83 84 100 . Level 1 16 | . 35 16 15 . . Level 2 . | . . . . . . Level 3 . | . . . . . . Level 4 . | . . . . . . Level 5 . | . . . . . . High Security . | . . . . . . Max Security . | . . . . . . Squads Dispatched 8 | . 4 . 4 . . Investigation 5 | . 4 . 1 . . Extermination . | . . . . . . Reinforcement 3 | . . . 3 . . Assault . | . . . . . . Garrison . | . . . . . . Intercept . | . . . . . . Searches Triggered . | . . . . . . Construction Impeded . | . . . . . . Haulers Reinforced . | . . . . . . Active Scanning Responses . | . . . . . . Cargo Convoy Interrupts . | . . . . . . Stealth | -11 -10 -10 -9 -9 -9 --------- Run | Yrd Mat Min Mat Min Exi Distress Signals 2 | . 1 . 1 . . Communications Jammed . | . . . . . . Distress Signals . | . . . . . . Times Spotted 63 | . 21 15 21 6 . Peak Tracking Total 4 | . 4 4 3 2 . Tactical Retreats 12 | . . 7 . 5 . Traps | -11 -10 -10 -9 -9 -9 ------- Run | Yrd Mat Min Mat Min Exi Traps Triggered . | . . . . . . Indirectly . | . . . . . . Trap Hack Attempts . | . . . . . . Triggered . | . . . . . . Disarmed . | . . . . . . Reprogrammed . | . . . . . . Reused . | . . . . . . Traps Extracted . | . . . . . . Installed 5 | . . . . 5 . Triggered . | . . . . . . Machines | -11 -10 -10 -9 -9 -9 ---------- Run | Yrd Mat Min Mat Min Exi Machines Disabled 1 | . 1 . . . . Max in Single Turn 1 | . 1 . . . . Machines Repaired . | . . . . . . Machines Dismantled . | . . . . . . Machines Sabotaged . | . . . . . . Overloaded Fab Kills . | . . . . . . Hacking | -11 -10 -10 -9 -9 -9 --------- Run | Yrd Mat Min Mat Min Exi Machines Accessed 18 | . 10 . 6 . 2 Terminals 14 | . 8 . 6 . . Fabricators . | . . . . . . Repair Stations . | . . . . . . Recycling Units 2 | . 2 . . . . Scanalyzers . | . . . . . . Garrison Access . | . . . . . . Total Hacks 65 | . 35 . 25 . 5 Successful 39 | . 19 . 15 . 5 Failed 26 | . 16 . 10 . . Catastrophic 1 | . . . 1 . . Database Lockouts . | . . . . . . Manual 38 | . 23 . 14 . 1 Terminals 56 | . 31 . 25 . . Fabricators . | . . . . . . Repair Stations . | . . . . . . Recycling Units 4 | . 4 . . . . Scanalyzers . | . . . . . . Garrison Access . | . . . . . . Terminal Hacks 35 | . 15 . 15 . 5 Record 4 | . . . . . 4 Part Schematic 5 | . . . 5 . . Robot Schematic 3 | . 3 . . . . Robot Analysis 5 | . 4 . 1 . . Prototype ID Bank 9 | . 5 . 4 . . Branch Access Points 1 | . . . 1 . . Machine Index 1 | . 1 . . . . Scanalyzer Index 1 | . . . 1 . . Unreport Threat 1 | . . . 1 . . Locate Traps 4 | . 2 . 2 . . Derelict Proto ID Bank 1 | . . . . . 1 Fabricator Hacks . | . . . . . . Repair Station Hacks . | . . . . . . Recycling Unit Hacks 2 | . 2 . . . . Report Inventory 2 | . 2 . . . . Scanalyzer . | . . . . . . Garrison Access Hacks . | . . . . . . Unauthorized Hacks 2 | . 2 . . . . Terminals . | . . . . . . Fabricators . | . . . . . . Repair Stations . | . . . . . . Recycling Units 2 | . 2 . . . . Tunnel 2 | . 2 . . . . Scanalyzers . | . . . . . . Garrison Access . | . . . . . . Data Cores Recovered . | . . . . . . Used . | . . . . . . Hacking Detections 15 | . 9 . 6 . . Full Trace Events 6 | . 4 . 2 . . Feedback Events . | . . . . . . Feedback Blocked . | . . . . . . Robot Schematics Acquired 3 | . 3 . . . . Robots Built . | . . . . . . Authchips . | . . . . . . Time . | . . . . . . Total Robot Build Rating . | . . . . . . Part Schematics Acquired 5 | . . . 5 . . Parts Built . | . . . . . . Authchips . | . . . . . . Time . | . . . . . . Total Part Build Rating . | . . . . . . Parts Repaired . | . . . . . . Time . | . . . . . . Parts Recycled . | . . . . . . Recycled Matter . | . . . . . . Retrieved Matter . | . . . . . . Retrieved Components . | . . . . . . Parts Scanalyzed . | . . . . . . Part Schematics Acquired . | . . . . . . Parts Damaged . | . . . . . . Bothacking | -11 -10 -10 -9 -9 -9 ------------ Run | Yrd Mat Min Mat Min Exi Used RIF Installer . | . . . . . . Robots Hacked 4 | . . . . . 4 Non-combat 3 | . . . . . 3 Combat 1 | . . . . . 1 Robot Hacks Applied 4 | . . . . . 4 parse_system 4 | . . . . . 4 Relay Couplers Released . | . . . . . . Fabnet Peak Effective % . | . . . . . . Robots Rewired . | . . . . . . Allies Hacked . | . . . . . . Hacks Repelled . | . . . . . . Allies | -11 -10 -10 -9 -9 -9 -------- Run | Yrd Mat Min Mat Min Exi Total Allies 4 | . . 1 . 3 . Largest Group 3 | . . 1 1 3 3 Highest-Rated Group 40 | . . 31 31 40 40 Highest-Rated Ally 31 | . . 31 31 16 16 Total Orders . | . . . . . . Ally Attacks 8 | . . 1 7 . . Total Damage 108 | . . 22 86 . . Kills 2 | . . 1 1 . . Allies Corrupted . | . . . . . . Allies Melted . | . . . . . . Intel | -11 -10 -10 -9 -9 -9 ------- Run | Yrd Mat Min Mat Min Exi Robot Analysis Total 5 | . 4 . 1 . . Derelict Logs Recovered 3 | . . . . 3 . Drone Launches . | . . . . . . Drone Recoveries . | . . . . . . Exploration | -11 -10 -10 -9 -9 -9 ------------- Run | Yrd Mat Min Mat Min Exi Turns Passed 3427 | 223 834 856 628 684 202 Spaces Moved 2179 | 102 501 588 304 521 163 Core 5 | 5 . . . . . Treads . | . . . . . . Legs 2174 | 97 501 588 304 521 163 Wheels . | . . . . . . Hover . | . . . . . . Flight . | . . . . . . Fastest Speed 50 | 50 120 120 120 120 120 Average Speed 119 | 116 120 120 120 120 120 Slowest Speed 190 | 120 120 120 190 120 120 Overloaded Moves . | . . . . . . Propulsion Burnouts . | . . . . . . Robots Hopped . | . . . . . . Cave-ins Triggered . | . . . . . . Exploration Rate (%) 63 | 7 96 98 23 94 61 Regions Visited 5 Branch Regions 3 Pre-discovered Areas 4 | . 2 . . 1 1 Known Exits Taken 5 | 1 1 1 1 1 . Unknown Exits Taken . | . . . . . . Scrap Searched 1 | . . 1 . . . Spaces Dug 1 | . . . . 1 . Terrain Destroyed 1 | . . . . 1 . Melee 1 | . . . . 1 . Projectile . | . . . . . . AOE . | . . . . . . Terrain Rammed . | . . . . . . Walls Destroyed . | . . . . . . Machines Disabled . | . . . . . . Actions | -11 -10 -10 -9 -9 -9 --------- Run | Yrd Mat Min Mat Min Exi Total 2686 | 189 633 665 478 554 167 Wait 236 | 72 48 16 91 9 . Move 2174 | 101 500 587 303 520 163 Hop . | . . . . . . Pick Up 12 | . 4 3 4 1 . Fast Attach 20 | 10 8 . 2 . . Attach 2 | . . 1 . 1 . Detach . | . . . . . . Swap 5 | . . . 5 . . Drop 20 | . 8 3 9 . . Fire 47 | 6 41 . . . . Melee 104 | . 9 35 44 12 4 Ram . | . . . . . . Kick . | . . . . . . Crush . | . . . . . . Escape Stasis . | . . . . . . Rewire . | . . . . . . Trap 5 | . . . . 5 . Miscellaneous 61 | . 15 20 20 6 . Route ------- -11/Scrapyard -10/Materials (discovered 6 exits: *Mat x3 / *Min x2 / *Sub) -10/Mines (discovered 3 exits: *Mat x2 / Sub) -9/Materials (discovered 2 exits: *Min x2) -9/Mines (discovered 4 exits: *Mat x2 / *Exi / [*Zio]) -9/Exiles History --------- Turn | Location | Event 5 | -11/Scrapyard | Upgraded with Propulsion slot (x1) 5 | -11/Scrapyard | Upgraded with Utility slot (x4) 5 | -11/Scrapyard | Upgraded with Weapon slot (x1) 5 | -11/Scrapyard | Identified exit to Materials 5 | -11/Scrapyard | Discovered exit to Materials (range 13) 224 | -11/Scrapyard | Entered Materials 301 | -10/Materials | Build established: Hacker-Mutant 396 | -10/Materials | Identified exit to Materials 396 | -10/Materials | Discovered exit to Materials (range 16) 456 | -10/Materials | Identified exit to Mines 456 | -10/Materials | Discovered exit to Mines (range 17) 549 | -10/Materials | Identified exit to Subcaves 549 | -10/Materials | Discovered exit to Subcaves (range 16) 621 | -10/Materials | Discovered exit to Materials (range 10) 771 | -10/Materials | Discovered exit to Mines (range 14) 792 | -10/Materials | Reached level 2 792 | -10/Materials | Upgraded with Power slot (x1) 792 | -10/Materials | Upgraded with Propulsion slot (x1) 962 | -10/Materials | Discovered exit to Materials (range 16) 1058 | -10/Materials | Entered Mines 1076 | -10/Mines | Reached level 3 1100 | -10/Mines | Upgraded with Utility slot (x1) 1140 | -10/Mines | Build established: Hacker-Gladiator 1213 | -10/Mines | Discovered exit to Subcaves (range 13) 1355 | -10/Mines | Discovered exit to Materials (range 15) 1357 | -10/Mines | Found a damaged Exp. Sensor Array with a note attached 1360 | -10/Mines | Found Prototype Device 1363 | -10/Mines | Identified Exp. Sensor Array 1378 | -10/Mines | Discovered exit to Materials (range 5) 1760 | -10/Mines | Received a Mining Laser from a helpful Derelict 1914 | -10/Mines | Entered Materials 1914 | -9/Materials | Accompanied by 1 ally 1916 | -9/Materials | Reached level 4 2081 | -9/Materials | Reached level 5 2273 | -9/Materials | Identified exit to Mines 2309 | -9/Materials | Upgraded with Utility slot (x1) 2443 | -9/Materials | Reached level 6 2542 | -9/Materials | Entered Mines 2586 | -9/Mines | Identified exit to Materials 2586 | -9/Mines | Discovered exit to Materials (range 3) 2587 | -9/Mines | A Derelict revealed a hidden shortcut to a safe place 2606 | -9/Mines | Deemed a non-threat by the Exiles lab entrance 2606 | -9/Mines | Identified exit to Exiles 2606 | -9/Mines | Discovered exit to Exiles (range 5) 2646 | -9/Mines | Found a hidden stash of uninstalled traps 2766 | -9/Mines | Received a Rocket Launcher from a helpful Derelict 2769 | -9/Mines | Upgraded with Weapon slot (x1) 2891 | -9/Mines | Learned 2 Materials zone layouts 2917 | -9/Mines | Discovered exit to Materials (range 10) 3031 | -9/Mines | A weapon hastily lodged in a ceiling crevice suddenly fell to the ground 3080 | -9/Mines | Learned 2 Materials zone layouts 3121 | -9/Mines | Learned location of Zion (-7) 3145 | -9/Mines | Assisted by bots powering up and referring to "LRC-V3" 3226 | -9/Mines | Entered Exiles 3226 | -9/Exiles | Accompanied by 3 allies 3255 | -9/Exiles | Met 8R-AWN 3278 | -9/Exiles | Met EX-HEX 3322 | -9/Exiles | Met EX-DEC 3377 | -9/Exiles | Met EX-BIN 3423 | -9/Exiles | Opened EX-Vault 3428 | -9/Exiles | Self-destructed Last Messages --------------- Modified TNC 0b10 Alert Chip Cloak of Protection Skeleton Box Trap Reconfigurator Supersonic Drone Bay Army-in-a-Box PSU Rigger Chronowheel AWS/Thermal Latent Energy Streamer Gui. Plasma Cannon Firepult YOLO Cannon AWS/Gauss XL Autogun Array AWS/Autocannon Field Lobotomy Kit Longsword +1 Deploy-a-Sentry Map ----- +----------------------------------------------------+ | | | | | | | | | | | | | | | | | | | | | | | | | | | | | | | | | | | | | | | | | ?????????#?????##??#########????????#????????????? | | ??????????????#????# [ #????#????????????????? | | ????????????#??????# ! ! #???????#?????????????? | | ????????????#????#?# #??#??????????????????? | | ???????????????????# X#??????#??????????????? | | ???????????????????## @#??????????????????????? | | ?????????????#??#??#X #??????????????????????? | | ???????????????????## g g##?#???????????????????? | | ?????????#?????#??#?# #?????##??#????????????? | | ??????????##???????## g #??#####???????????????? | | ??????????????#?????# #??"""""???????????????? | | ??????????????#?????# ## """##?????????????? | | ???????###?#?????#??# X""#??????????????? | | ????????????#??#??#?# ## """#??????????????? | | ???????#?#???#####??# #??"""""????#??????????? | | ?????????#???""""""?# #???####?#?#???????????? | | ?????????????"""" ## #?#??#???#??##?#???????? | | ?????????#??#""X" #?#?#?#?#??????????????? | | ????????????#" ###??###??##???????????? | | ???????????##" ## ##??#??#?#?#???????????? | | ????????#??##""""""?# ##########??#???#??????? | | ?????????#??##"###??# #?#"""""""#??#?????????? | | ?????????#????"?###?# #?#"""""""##???????????? | | ????????????"" ?????# #?#"""""""#???#????????? | | ?????????????? ##?### ###"" """"#????????????? | | ????????????""???#?#" """"#?#????#?????? | | ?????????##???#????#" """##?#?????????? | | ??????????????#??#?#" """#??#?????????? | | ?????#?#??##?#????##" """#? ??????????? | | ????#?######??##?###" """#???"????????? | +----------------------------------------------------+ Best States ------------- Heat Dissipation 39 Energy Generation 23 Energy Capacity 460 Matter Stores 300 Matter Capacity 300 Sight Range 17 Robot Scan Range 20 Terrain Scan Range 16 Terrain Scan Density 110 Armor Coverage 450 Resistance: KI 35 Resistance: TH 35 Resistance: EX 35 Resistance: EM 35 Resistance: I 35 Resistance: S 35 Resistance: P 35 Utility Shielding 33 Evasion (%) 55 Targeting Accuracy 10 Offensive Hacking 20 Defensive Hacking 5 Authchip Count 2 Item Schematics ----------------- Datajack | -9/Materials | Hacked Mni. Grenade Launcher | -9/Materials | Hacked Med. Armor Plating | -9/Materials | Hacked Imp. Aluminum Leg | -9/Materials | Hacked Trap Extractor | -9/Materials | Hacked Robot Schematics ------------------ M-13 Machinist | -10/Materials | Hacked O-16 Technician | -10/Materials | Hacked A-02 Transporter | -10/Materials | Hacked Fabricated ------------ Nothing Alien Tech Used ----------------- None Achievements -------------- None Challenges ------------ None RPGLIKE | -11 -10 -10 -9 -9 -9 --------- Run | Yrd Mat Min Mat Min Exi Levels Raised 5 | . 1 1 3 . . XP Earned 14748 | 6000 2420 1362 3966 800 200 XP Spent 12550 | 6000 1300 1700 2750 800 . Upgrades 18 | 12 2 1 2 1 . Power Slot 1 | . 1 . . . . Propulsion Slot 2 | 1 1 . . . . Utility Slot 6 | 4 . 1 1 . . Weapon Slot 2 | 1 . . . 1 . Mass Support 1 | 1 . . . . . Inventory Capacity 3 | 2 . . 1 . . Sight Range 1 | 1 . . . . . Terrain Scan Density 1 | 1 . . . . . Hack Defense % 1 | 1 . . . . . Protomatter Created 616 | . 243 70 286 17 . Integrity Restored 1000 | . 216 365 352 67 . Core 635 | . 123 279 201 32 . Parts 365 | . 93 86 151 35 . Protomatter Decayed 46 | . 28 . 11 7 . Game ------ Seed CoordinationSubdwellerMaul Manual? 1 Play Time 00:28:12 Cumulative 19.2 hours Start 2024.04.24 @ 20:28:02 End 2024.04.25 @ 11:08:28 Sessions 3 Manual Loads 0 Difficulty Explorer Special Mode Winter2019/RPGLIKE Game No. 13 Rogue 11 Adventurer 0 Explorer 2 Win Type - Total 0 Types 0/0/0/0/0/0/0/0/0 Lore% 18 Gallery% 35 Achievement% 30 Wizard Run 0 Options --------- Layout 2 ASCII 0 Keyboard 0 Movement Mouse Keybinds 0 Fullscreen 2 Font 24/Smallcaps Map View 50x44 Zoom Use 0% Tactical HUD 1 Map Filters NONE Filters NONE Steam 0 RUN: 816e87e6-5876-4834-abed-83a28e2a80e6